fUST/lending_fUST_20240820
["ID","MTS","AMOUNT","RATE_DAILY","PERIOD"]
[335356673,1724157044599,-500.0,0.00016438,2]
[335356674,1724157044610,-500.0,0.00016438,2]
[335356675,1724157044620,-5579.9,0.00016438,2]
[335356676,1724157044631,-501.51801018,0.00016438,2]
[335356677,1724157044641,-500.0,0.00016438,2]
[335356678,1724157044651,-500.0,0.00016438,2]
[335356679,1724157044660,-500.0,0.00016438,2]
[335356680,1724157044669,-500.0,0.00016438,2]
[335356681,1724157044678,-500.0,0.00016438,2]
[335356682,1724157044688,-500.0,0.00016438,2]
[335356683,1724157044697,-500.0,0.00016438,2]
[335356684,1724157044707,-518.37907927,0.00016438,2]
[335356685,1724157044720,-500.0,0.00016438,2]
[335356686,1724157044730,-501.15477062,0.00016438,2]
[335356687,1724157044740,-500.0,0.00016438,2]
[335356688,1724157044749,-500.0,0.00016438,2]
[335356689,1724157044759,-500.0,0.00016438,2]
[335356690,1724157044772,-279.57087627,0.00016438,2]
[335356691,1724157044782,-500.0,0.00016438,2]
[335356692,1724157044795,-526.93603472,0.00016438,2]
[335356693,1724157044806,-500.0,0.00016438,2]
[335356694,1724157044817,-500.0,0.00016438,2]
[335356695,1724157044827,-500.0,0.00016438,2]
[335356696,1724157044837,-500.0,0.00016438,2]
[335356697,1724157044848,-500.0,0.00016438,2]
[335356698,1724157044858,-501.90928877,0.00016438,2]
[335356699,1724157044868,-500.0,0.00016438,2]
[335356700,1724157044883,-500.0,0.00016438,2]
[335356701,1724157044895,-200.0,0.00016473,2]
[335356702,1724157044905,-200.0,0.00016473,2]
[335356703,1724157044916,-160.0,0.00016692,3]
[335356704,1724157044927,-59560.14264735,0.000167,2]
[335356705,1724157044937,-500.0,0.00016701,2]
[335356706,1724157044947,-500.0,0.00016711,2]
[335356707,1724157044959,-340.55325112,0.00016711,2]
[335356708,1724157044972,-500.0,0.00016711,2]
[335356709,1724157044981,-575.35760915,0.00016712,2]
[335356710,1724157044991,-500.0,0.00016712,2]
[335356711,1724157045002,-500.0,0.00016712,2]
[335356712,1724157045012,-505.84789719,0.00016712,2]
[335356713,1724157045022,-500.0,0.00016712,2]
[335356714,1724157045032,-503.96616619,0.00016712,2]
[335356715,1724157045042,-501.31414961,0.00016712,2]
[335356716,1724157045052,-501.51002754,0.00016712,2]
[335356717,1724157045062,-500.0,0.00016712,2]
[335356718,1724157045071,-500.0,0.00016712,2]
[335356719,1724157045081,-500.0,0.00016712,2]
[335356720,1724157045090,-500.0,0.00016712,2]
[335356721,1724157045099,-500.0,0.00016712,2]
[335356722,1724157045108,-500.0,0.00016712,2]
[335356723,1724157045118,-500.0,0.00016712,2]
[335356724,1724157045128,-500.0,0.00016712,2]
[335356725,1724157045138,-500.0,0.00016712,2]
[335356726,1724157045147,-500.0,0.00016712,2]
[335356727,1724157045157,-500.0,0.00016712,2]
[335356728,1724157045167,-503.26613648,0.00016712,2]
[335356729,1724157045176,-505.56050901,0.00016712,2]
[335356730,1724157045186,-576.62884116,0.00016712,2]
[335356731,1724157045196,-500.0,0.00016712,2]
[335356732,1724157045206,-505.54129742,0.00016712,2]
[335356733,1724157045217,-502.98749075,0.00016712,2]
[335356734,1724157045226,-2000.0,0.00016712,2]
[335356735,1724157045236,-241.74703384,0.00016712,2]
[335356736,1724157045246,-504.25281435,0.00016712,2]
[335356737,1724157045255,-500.0,0.00016712,2]
[335356738,1724157045265,-500.0,0.00016712,2]
[335356739,1724157045274,-500.0,0.00016712,2]
[335356740,1724157045285,-500.0,0.00016712,2]
[335356741,1724157045295,-500.0,0.00016712,2]
[335356742,1724157045304,-500.0,0.00016712,2]
[335356743,1724157045314,-352.03186202,0.00016712,2]
[335356744,1724157045324,-747.19,0.00016712,2]
[335356745,1724157045334,-501.83754035,0.00016712,2]
[335356746,1724157045345,-505.25509018,0.00016712,2]
[335356747,1724157045355,-515.07755243,0.00016712,2]
[335356748,1724157045366,-503.65840055,0.00016712,2]
[335356749,1724157045377,-505.03545993,0.00016712,2]
[335356750,1724157045386,-504.27669936,0.00016712,2]
[335356751,1724157045397,-500.0,0.00016712,2]
[335356752,1724157045406,-612.4,0.00016712,2]
[335356753,1724157045416,-500.0,0.00016712,2]
[335356754,1724157045427,-500.0,0.00016712,2]
[335356755,1724157045438,-500.0,0.00016712,2]
[335356756,1724157045448,-500.0,0.00016712,2]
[335356757,1724157045460,-500.0,0.00016712,2]
[335356758,1724157045471,-598.27507587,0.00016712,2]
[335356759,1724157045482,-500.0,0.00016712,2]
[335356760,1724157045493,-500.0,0.00016712,2]
[335356761,1724157045504,-500.0,0.00016712,2]
[335356762,1724157045516,-500.0,0.00016712,2]
[335356763,1724157045527,-500.0,0.00016712,2]
[335356764,1724157045539,-500.0,0.00016712,2]
[335356765,1724157045552,-644.95,0.00016712,2]
[335356766,1724157045563,-1527.65,0.00016712,2]
[335356767,1724157045574,-460.07984016,0.00016712,2]
[335356768,1724157045585,-500.0,0.00016712,2]
[335356769,1724157045596,-500.0,0.00016712,2]
[335356770,1724157045608,-500.0,0.00016712,2]
[335356771,1724157045619,-500.0,0.00016712,2]
[335356772,1724157045629,-500.0,0.00016712,2]
[335356773,1724157045641,-500.0,0.00016712,2]
[335356774,1724157045653,-164.2326318,0.00016712,2]
[335356775,1724157045662,-500.0,0.00016712,2]
[335356776,1724157045675,-500.0,0.00016712,2]
[335356777,1724157045685,-500.0,0.00016712,2]
[335356778,1724157045695,-827.42,0.00016712,2]
[335356779,1724157045707,-500.0,0.00016712,2]
[335356780,1724157045718,-500.0,0.00016712,2]
[335356781,1724157045728,-332.38391732,0.00016712,2]
[335356782,1724157045739,-500.0,0.00016712,2]
[335356783,1724157045749,-500.0,0.00016712,2]
[335356784,1724157045759,-500.0,0.00016712,2]
[335356785,1724157045769,-509.28935001,0.00016712,2]
[335356786,1724157045778,-504.31810645,0.00016712,2]
[335356787,1724157045788,-500.0,0.00016712,2]
[335356788,1724157045801,-500.0,0.00016712,2]
[335356789,1724157045812,-509.04297039,0.00016712,2]
[335356790,1724157045824,-500.0,0.00016712,2]
[335356791,1724157045835,-500.0,0.00016712,2]
[335356792,1724157045848,-500.0,0.00016712,2]
[335356793,1724157045858,-500.0,0.00016712,2]
[335356794,1724157045869,-264.16217242,0.00016712,2]
[335356795,1724157045882,-500.0,0.00016712,2]
[335356796,1724157045893,-500.0,0.00016712,2]
[335356797,1724157045903,-500.0,0.00016712,2]
[335356798,1724157045913,-500.0,0.00016712,2]
[335356799,1724157045923,-480.30238347,0.00016712,2]
[335356800,1724157045934,-500.0,0.00016712,2]
[335356801,1724157045944,-507.00783618,0.00016712,2]
[335356802,1724157045957,-500.0,0.00016712,2]
[335356803,1724157045967,-1000.0,0.00016712,2]
[335356804,1724157045976,-500.0,0.00016712,2]
[335356805,1724157045986,-500.0,0.00016712,2]
[335356806,1724157045997,-269.72120162,0.00016712,2]
[335356807,1724157046008,-500.0,0.00016712,2]
[335356808,1724157046019,-500.0,0.00016712,2]
[335356809,1724157046030,-500.0,0.00016712,2]
[335356810,1724157046042,-500.0,0.00016712,2]
[335356811,1724157046053,-1900.07,0.00016712,2]
[335356812,1724157046064,-500.0,0.00016712,2]
[335356813,1724157046075,-500.0,0.00016712,2]
[335356814,1724157046086,-500.0,0.00016712,2]
[335356815,1724157046097,-500.0,0.00016712,2]
[335356816,1724157046108,-500.0,0.00016712,2]
[335356817,1724157046119,-500.0,0.00016712,2]
[335356818,1724157046129,-500.0,0.00016712,2]
[335356819,1724157046141,-500.0,0.00016712,2]
[335356820,1724157046151,-500.0,0.00016712,2]
[335356821,1724157046163,-504.11531417,0.00016712,2]
[335356822,1724157046176,-500.0,0.00016712,2]
[335356823,1724157046187,-500.0,0.00016712,2]
[335356824,1724157046196,-500.0,0.00016712,2]
[335356825,1724157046206,-500.0,0.00016712,2]
[335356826,1724157046217,-500.0,0.00016712,2]
[335356827,1724157046227,-506.03153066,0.00016712,2]
[335356828,1724157046236,-982.09,0.00016712,2]
[335356829,1724157046247,-500.0,0.00016712,2]
[335356830,1724157046257,-500.0,0.00016712,2]
[335356832,1724157046268,-500.0,0.00016712,2]
[335356834,1724157046277,-500.0,0.00016712,2]
[335356835,1724157046287,-500.0,0.00016712,2]
[335356836,1724157046296,-500.0,0.00016712,2]
[335356837,1724157046307,-555.11710822,0.00016712,2]
[335356839,1724157046316,-994.14,0.00016712,2]
[335356840,1724157046326,-500.0,0.00016712,2]
[335356841,1724157046341,-588.09268531,0.00016712,2]
[335356842,1724157046351,-500.0,0.00016712,2]
[335356843,1724157046361,-1254.91,0.00016712,2]
[335356844,1724157046371,-500.0,0.00016712,2]
[335356845,1724157046383,-412.72989913,0.00016712,2]
[335356846,1724157046393,-500.0,0.00016712,2]
[335356847,1724157046404,-500.0,0.00016712,2]
[335356848,1724157046415,-500.0,0.00016712,2]
[335356849,1724157046426,-508.36521494,0.00016712,2]
[335356851,1724157046436,-500.0,0.00016712,2]
[335356853,1724157046446,-1784.81,0.00016712,2]
[335356855,1724157046456,-500.0,0.00016712,2]
[335356857,1724157046466,-500.0,0.00016712,2]
[335356858,1724157046476,-500.0,0.00016712,2]
[335356859,1724157046486,-500.0,0.00016712,2]
[335356861,1724157046496,-500.0,0.00016712,2]
[335356862,1724157046506,-500.0,0.00016712,2]
[335356863,1724157046517,-506.35552313,0.00016712,2]
[335356864,1724157046527,-500.0,0.00016712,2]
[335356865,1724157046537,-500.0,0.00016712,2]
[335356866,1724157046547,-507.50586858,0.00016712,2]
[335356867,1724157046558,-1054.7,0.00016712,2]
[335356868,1724157046579,-500.0,0.00016712,2]
[335356869,1724157046591,-500.0,0.00016712,2]
[335356870,1724157046604,-1164.12,0.00016712,2]
[335356871,1724157046614,-500.0,0.00016712,2]
[335356872,1724157046626,-500.0,0.00016712,2]
[335356873,1724157046638,-500.0,0.00016712,2]
[335356874,1724157046649,-500.0,0.00016712,2]
[335356875,1724157046660,-500.0,0.00016712,2]
[335356876,1724157046672,-500.0,0.00016712,2]
[335356877,1724157046684,-500.0,0.00016712,2]
[335356878,1724157046695,-531.62,0.00016712,2]
[335356879,1724157046707,-503.77642172,0.00016712,2]
[335356880,1724157046718,-500.0,0.00016712,2]
[335356881,1724157046729,-452.43841944,0.00016712,2]
[335356882,1724157046741,-501.59760848,0.00016712,2]
[335356883,1724157046752,-206.47219121,0.00016712,2]
[335356884,1724157046762,-546.48982089,0.00016712,2]
[335356885,1724157046773,-502.28822342,0.00016712,2]
[335356886,1724157046784,-500.0,0.00016712,2]
[335356887,1724157046795,-498.86302463,0.00016712,2]
[335356888,1724157046805,-500.54378537,0.00016712,2]
[335356889,1724157046817,-500.0,0.00016712,2]
[335356890,1724157046829,-500.0,0.00016712,2]
[335356891,1724157046840,-500.0,0.00016712,2]
[335356892,1724157046852,-159.9,0.00016712,2]
[335356893,1724157046862,-504.50920809,0.00016712,2]
[335356894,1724157046873,-502.35873928,0.00016712,2]
[335356895,1724157046889,-448.68916869,0.00016712,2]
[335356896,1724157046900,-500.0,0.00016712,2]
[335356897,1724157046913,-500.0,0.00016712,2]
[335356898,1724157046924,-500.0,0.00016712,2]
[335356899,1724157046937,-500.0,0.00016712,2]
[335356900,1724157046949,-500.0,0.00016712,2]
[335356901,1724157046961,-500.0,0.00016712,2]
[335356902,1724157046971,-500.0,0.00016712,2]
[335356903,1724157046981,-500.0,0.00016712,2]
[335356904,1724157046991,-500.0,0.00016712,2]
[335356905,1724157047002,-487.50848374,0.00016712,2]
[335356906,1724157047012,-502.6975238,0.00016712,2]
[335356907,1724157047023,-3094.32,0.00016712,2]
[335356908,1724157047034,-547.15,0.00016712,2]
[335356909,1724157047046,-386.28680511,0.00016712,2]
[335356910,1724157047058,-500.0,0.00016712,2]
[335356911,1724157047070,-500.0,0.00016712,2]
[335356912,1724157047083,-500.0,0.00016712,2]
[335356913,1724157047093,-500.0,0.00016712,2]
[335356914,1724157047103,-500.0,0.00016712,2]
[335356915,1724157047115,-708.97,0.00016712,2]
[335356916,1724157047126,-500.0,0.00016712,2]
[335356917,1724157047136,-500.0,0.00016712,2]
[335356918,1724157047147,-500.0,0.00016712,2]
[335356919,1724157047158,-208.62,0.00016712,2]
[335356920,1724157047168,-500.0,0.00016712,2]
[335356921,1724157047178,-500.0,0.00016712,2]
[335356922,1724157047190,-500.0,0.00016712,2]
[335356923,1724157047201,-320.5,0.00016712,2]
[335356924,1724157047212,-500.0,0.00016712,2]
[335356925,1724157047225,-515.50998984,0.00016712,2]
[335356926,1724157047235,-174.4,0.00016712,2]
[335356927,1724157047247,-500.0,0.00016712,2]
[335356928,1724157047258,-639.74,0.00016712,2]
[335356929,1724157047269,-508.6277511,0.00016712,2]
[335356930,1724157047282,-446.36646732,0.00016712,2]
[335356931,1724157047294,-500.0,0.00016712,2]
[335356932,1724157047305,-500.0,0.00016712,2]
[335356933,1724157047316,-500.0,0.00016712,2]
[335356934,1724157047329,-500.0,0.00016712,2]
[335356935,1724157047340,-500.0,0.00016712,2]
[335356936,1724157047351,-500.0,0.00016712,2]
[335356937,1724157047363,-500.44561053,0.00016712,2]
[335356938,1724157047374,-500.0,0.00016712,2]
[335356939,1724157047385,-501.3110504,0.00016712,2]
[335356940,1724157047400,-500.0,0.00016712,2]
[335356941,1724157047411,-500.0,0.00016712,2]
[335356942,1724157047423,-500.0,0.00016712,2]
[335356943,1724157047433,-500.0,0.00016712,2]
[335356944,1724157047445,-500.25624756,0.00016712,2]
[335356945,1724157047456,-504.18904369,0.00016712,2]
[335356946,1724157047467,-504.07005618,0.00016712,2]
[335356947,1724157047478,-500.0,0.00016712,2]
[335356948,1724157047489,-500.0,0.00016712,2]
[335356949,1724157047499,-292.84703741,0.00016712,2]
[335356950,1724157047510,-500.0,0.00016712,2]
[335356951,1724157047521,-500.0,0.00016712,2]
[335356952,1724157047531,-870.17,0.00016712,2]
[335356953,1724157047541,-500.0,0.00016712,2]
[335356954,1724157047552,-500.0,0.00016712,2]
[335356955,1724157047563,-740.4,0.00016712,2]
[335356956,1724157047574,-500.0,0.00016712,2]
[335356957,1724157047586,-500.0,0.00016712,2]
[335356958,1724157047597,-5579.9,0.00016712,2]
[335356959,1724157047608,-500.0,0.00016712,2]
[335356960,1724157047620,-502.76661967,0.00016712,2]
[335356961,1724157047631,-500.0,0.00016712,2]
[335356962,1724157047773,-500.0,0.00016712,2]
[335356963,1724157047797,-502.59095076,0.00016712,2]
[335356964,1724157047807,-504.46954326,0.00016712,2]
[335356965,1724157047817,-500.1932811,0.00016712,2]
[335356966,1724157047827,-500.0,0.00016712,2]
[335356967,1724157047837,-500.0,0.00016712,2]
[335356968,1724157047847,-500.0,0.00016712,2]
[335356969,1724157047857,-500.0,0.00016712,2]
[335356970,1724157047866,-501.55091637,0.00016712,2]
[335356971,1724157047879,-500.0,0.00016712,2]
[335356972,1724157047891,-500.0,0.00016712,2]
[335356973,1724157047901,-500.0,0.00016712,2]
[335356974,1724157047911,-500.0,0.00016712,2]
[335356975,1724157047921,-500.0,0.00016712,2]
[335356976,1724157047933,-500.0,0.00016712,2]
[335356977,1724157047943,-500.0,0.00016712,2]
[335356978,1724157047952,-452.1,0.00016836,2]
[335356979,1724157047963,-258.3,0.00016836,2]
[335356980,1724157047973,-150.603,0.00016901,2]
[335356981,1724157047983,-521.0,0.00016901,2]
[335356982,1724157047993,-602.049,0.00016901,2]
[335356983,1724157048002,-500.0,0.00016986,2]
[335356984,1724157048012,-503.93180508,0.00016986,2]
[335356985,1724157048022,-500.0,0.00016986,2]
[335356986,1724157048031,-500.0,0.00016986,2]
[335356987,1724157048041,-433.54811813,0.00016986,2]
[335356988,1724157048051,-500.0,0.00016986,2]
[335356989,1724157048060,-2000.0,0.00016986,2]
[335356990,1724157048071,-500.0,0.00016986,2]
[335356991,1724157048081,-541.8987227,0.00016986,2]
[335356992,1724157048091,-500.0,0.00016986,2]
[335356993,1724157048101,-747.19,0.00016986,2]
[335356994,1724157048111,-500.0,0.00016986,2]
[335356995,1724157048121,-612.4,0.00016986,2]
[335356996,1724157048132,-500.0,0.00016986,2]
[335356997,1724157048141,-500.0,0.00016986,2]
[335356998,1724157048151,-500.0,0.00016986,2]
[335356999,1724157048161,-305.21,0.00016986,2]
[335357000,1724157048171,-500.0,0.00016986,2]
[335357001,1724157048181,-501.32321532,0.00016986,2]
[335357002,1724157048191,-500.0,0.00016986,2]
[335357003,1724157048200,-500.0,0.00016986,2]
[335357004,1724157048210,-644.95,0.00016986,2]
[335357005,1724157048219,-1527.65,0.00016986,2]
[335357006,1724157048229,-435.99064678,0.00016986,2]
[335357007,1724157048239,-227.07,0.00016986,2]
[335357008,1724157048248,-224.42363549,0.00016986,2]
[335357009,1724157048259,-500.0,0.00016986,2]
[335357010,1724157048269,-500.0,0.00016986,2]
[335357011,1724157048279,-500.0,0.00016986,2]
[335357012,1724157048289,-827.42,0.00016986,2]
[335357013,1724157048299,-500.0,0.00016986,2]
[335357014,1724157048308,-500.0,0.00016986,2]
[335357015,1724157048318,-500.0,0.00016986,2]
[335357016,1724157048327,-500.0,0.00016986,2]
[335357017,1724157048337,-246.32369394,0.00016986,2]
[335357018,1724157048346,-500.0,0.00016986,2]
[335357019,1724157048356,-500.0,0.00016986,2]
[335357020,1724157048366,-500.0,0.00016986,2]
[335357021,1724157048375,-500.0,0.00016986,2]
[335357022,1724157048385,-500.0,0.00016986,2]
[335357023,1724157048395,-492.44588313,0.00016986,2]
[335357024,1724157048404,-500.0,0.00016986,2]
[335357025,1724157048414,-500.0,0.00016986,2]
[335357026,1724157048423,-500.0,0.00016986,2]
[335357027,1724157048433,-265.74306581,0.00016986,2]
[335357028,1724157048444,-500.0,0.00016986,2]
[335357029,1724157048454,-500.0,0.00016986,2]
[335357030,1724157048464,-500.0,0.00016986,2]
[335357031,1724157048473,-500.0,0.00016986,2]
[335357032,1724157048483,-500.0,0.00016986,2]
[335357033,1724157048493,-500.0,0.00016986,2]
[335357034,1724157048503,-1900.07,0.00016986,2]
[335357035,1724157048514,-500.0,0.00016986,2]
[335357036,1724157048524,-550.96298902,0.00016986,2]
[335357037,1724157048533,-500.0,0.00016986,2]
[335357038,1724157048543,-538.36467929,0.00016986,2]
[335357039,1724157048554,-506.54609296,0.00016986,2]
[335357040,1724157048566,-308.48147675,0.00016986,2]
[335357041,1724157048576,-500.0,0.00016986,2]
[335357042,1724157048587,-506.20667889,0.00016986,2]
[335357043,1724157048598,-500.0,0.00016986,2]
[335357044,1724157048608,-500.0,0.00016986,2]
[335357045,1724157048618,-500.0,0.00016986,2]
[335357046,1724157048628,-500.0,0.00016986,2]
[335357047,1724157048637,-500.0,0.00016986,2]
[335357048,1724157048647,-982.09,0.00016986,2]
[335357049,1724157048658,-500.0,0.00016986,2]
[335357050,1724157048668,-500.0,0.00016986,2]
[335357051,1724157048678,-500.0,0.00016986,2]
[335357052,1724157048696,-504.71875675,0.00016986,2]
[335357053,1724157048710,-500.0,0.00016986,2]
[335357054,1724157048723,-994.14,0.00016986,2]
[335357055,1724157048732,-500.0,0.00016986,2]
[335357056,1724157048743,-500.0,0.00016986,2]
[335357057,1724157048754,-1254.91,0.00016986,2]
[335357058,1724157048765,-500.0,0.00016986,2]
[335357059,1724157048776,-500.0,0.00016986,2]
[335357060,1724157048787,-500.0,0.00016986,2]
[335357061,1724157048796,-500.0,0.00016986,2]
[335357062,1724157048807,-500.0,0.00016986,2]
[335357063,1724157048817,-1784.81,0.00016986,2]
[335357064,1724157048829,-500.0,0.00016986,2]
[335357065,1724157048839,-500.0,0.00016986,2]
[335357066,1724157048849,-429.5492768,0.00016986,2]
[335357067,1724157048859,-547.40105573,0.00016986,2]
[335357068,1724157048874,-500.0,0.00016986,2]
[335357069,1724157048887,-258.79,0.00016986,2]
[335357070,1724157048897,-518.88731688,0.00016986,2]
[335357071,1724157048908,-500.0,0.00016986,2]
[335357072,1724157048918,-1054.7,0.00016986,2]
[335357073,1724157048928,-1164.12,0.00016986,2]
[335357074,1724157048938,-500.0,0.00016986,2]
[335357075,1724157048948,-500.0,0.00016986,2]
[335357076,1724157048960,-502.80649111,0.00016986,2]
[335357077,1724157048970,-500.0,0.00016986,2]
[335357078,1724157048981,-500.0,0.00016986,2]
[335357079,1724157048991,-531.62,0.00016986,2]
[335357080,1724157049001,-323.45830038,0.00016986,2]
[335357081,1724157049011,-500.0,0.00016986,2]
[335357082,1724157049021,-500.0,0.00016986,2]
[335357083,1724157049031,-543.54154754,0.00016986,2]
[335357084,1724157049041,-500.0,0.00016986,2]
[335357085,1724157049052,-182.49218685,0.00016986,2]
[335357086,1724157049063,-500.0,0.00016986,2]
[335357087,1724157049073,-500.0,0.00016986,2]
[335357088,1724157049084,-500.0,0.00016986,2]
[335357089,1724157049094,-500.0,0.00016986,2]
[335357090,1724157049105,-3094.32,0.00016986,2]
[335357091,1724157049115,-547.15,0.00016986,2]
[335357092,1724157049126,-500.0,0.00016986,2]
[335357093,1724157049136,-500.0,0.00016986,2]
[335357094,1724157049146,-500.0,0.00016986,2]
[335357095,1724157049156,-500.0,0.00016986,2]
[335357096,1724157049167,-708.97,0.00016986,2]
[335357097,1724157049177,-500.0,0.00016986,2]
[335357098,1724157049187,-500.0,0.00016986,2]
[335357099,1724157049197,-500.0,0.00016986,2]
[335357100,1724157049208,-545.45805345,0.00016986,2]
[335357101,1724157049218,-500.0,0.00016986,2]
[335357102,1724157049229,-500.0,0.00016986,2]
[335357103,1724157049240,-577.73029132,0.00016986,2]
[335357104,1724157049250,-500.0,0.00016986,2]
[335357105,1724157049261,-260.69463394,0.00016986,2]
[335357106,1724157049271,-509.10857805,0.00016986,2]
[335357107,1724157049281,-500.0,0.00016986,2]
[335357108,1724157049292,-500.0,0.00016986,2]
[335357109,1724157049303,-225.21221614,0.00016986,2]
[335357110,1724157049313,-500.0,0.00016986,2]
[335357111,1724157049323,-505.98186645,0.00016986,2]
[335357112,1724157049334,-500.0,0.00016986,2]
[335357113,1724157049344,-194.95932661,0.00016986,2]
[335357114,1724157049355,-500.0,0.00016986,2]
[335357115,1724157049365,-870.17,0.00016986,2]
[335357116,1724157049376,-500.0,0.00016986,2]
[335357117,1724157049386,-199.85,0.00016986,2]
[335357118,1724157049396,-740.4,0.00016986,2]
[335357119,1724157049408,-515.67315912,0.00016986,2]
[335357120,1724157049420,-5579.9,0.00016986,2]
[335357121,1724157049430,-276.9066818,0.00016986,2]
[335357122,1724157049440,-340.39479362,0.00016986,2]
[335357123,1724157049449,-500.0,0.00016986,2]
[335357124,1724157049459,-500.0,0.00016986,2]
[335357125,1724157049469,-500.0,0.00016986,2]
[335357126,1724157049479,-500.0,0.00016986,2]
[335357127,1724157049489,-500.0,0.00016986,2]
[335357128,1724157049498,-500.0,0.00016986,2]
[335357129,1724157049509,-1000.0,0.00017,17]
[335357130,1724157049519,-300.0,0.000172,6]
[335357131,1724157049528,-452.1,0.00017235,2]
[335357132,1724157049539,-258.3,0.00017235,2]
[335357133,1724157049549,-517.6837844,0.0001726,2]
[335357134,1724157049560,-500.0,0.0001726,2]
[335357135,1724157049570,-1765.31467839,0.0001726,2]
[335357136,1724157049583,-508.95852246,0.0001726,2]
[335357137,1724157049593,-500.0,0.0001726,2]
[335357138,1724157049603,-747.19,0.0001726,2]
[335357139,1724157049613,-500.0,0.0001726,2]
[335357140,1724157049622,-612.4,0.0001726,2]
[335357141,1724157049632,-500.0,0.0001726,2]
[335357142,1724157049642,-500.0,0.0001726,2]
[335357143,1724157049652,-500.0,0.0001726,2]
[335357144,1724157049663,-500.0,0.0001726,2]
[335357145,1724157049673,-500.0,0.0001726,2]
[335357146,1724157049685,-500.0,0.0001726,2]
[335357147,1724157049695,-644.95,0.0001726,2]
[335357148,1724157049705,-1527.65,0.0001726,2]
[335357149,1724157049717,-500.0,0.0001726,2]
[335357150,1724157049727,-500.0,0.0001726,2]
[335357151,1724157049736,-500.0,0.0001726,2]
[335357152,1724157049747,-827.42,0.0001726,2]
[335357153,1724157049756,-500.0,0.0001726,2]
[335357154,1724157049766,-500.0,0.0001726,2]
[335357155,1724157049776,-284.01827494,0.0001726,2]
[335357156,1724157049785,-500.0,0.0001726,2]
[335357157,1724157049796,-500.0,0.0001726,2]
[335357158,1724157049806,-500.0,0.0001726,2]
[335357159,1724157049817,-500.0,0.0001726,2]
[335357160,1724157049826,-500.0,0.0001726,2]
[335357161,1724157049837,-500.0,0.0001726,2]
[335357162,1724157049847,-500.0,0.0001726,2]
[335357163,1724157049857,-500.0,0.0001726,2]
[335357164,1724157049867,-356.74728872,0.0001726,2]
[335357165,1724157049880,-500.0,0.0001726,2]
[335357166,1724157049889,-500.0,0.0001726,2]
[335357167,1724157049899,-500.0,0.0001726,2]
[335357168,1724157049909,-500.0,0.0001726,2]
[335357169,1724157049919,-500.0,0.0001726,2]
[335357170,1724157049929,-500.0,0.0001726,2]
[335357171,1724157049939,-1900.07,0.0001726,2]
[335357172,1724157049951,-266.24978783,0.0001726,2]
[335357173,1724157049962,-500.0,0.0001726,2]
[335357174,1724157049972,-587.21033383,0.0001726,2]
[335357175,1724157049982,-500.0,0.0001726,2]
[335357176,1724157049991,-500.0,0.0001726,2]
[335357177,1724157050001,-500.0,0.0001726,2]
[335357178,1724157050011,-500.0,0.0001726,2]
[335357179,1724157050021,-982.09,0.0001726,2]
[335357180,1724157050031,-265.28289091,0.0001726,2]